fUSD/lending_fUSD_20240404
["ID","MTS","AMOUNT","RATE_DAILY","PERIOD"]
[321448989,1712196637685,-156.25329021,0.00024998,2]
[321448990,1712196637695,-164.4287187,0.00024998,2]
[321448991,1712196637704,-382.03370973,0.00024998,2]
[321448992,1712196637714,-7208.22590073,0.00025,2]
[321448993,1712196637724,-285.50624881,0.00025,2]
[321448994,1712196637736,-275.40086599,0.00025,2]
[321448995,1712196637746,-21897772.97105279,0.00025,2]
[321448996,1712196637759,-6130990.46047935,0.00025,2]
[321448997,1712196637768,-200537.01140297,0.00025,2]
[321448998,1712196637779,-155.0,0.00025,2]
[321448999,1712196637788,-2601.01958159,0.00025,2]
[321449000,1712196637798,-1060.7,0.00025,2]
[321449001,1712196637808,-1103.62,0.00025,2]
[321449002,1712196637818,-1155.79,0.00025,2]
[321449003,1712196637828,-2683.91038238,0.00025,2]
[321449004,1712196637838,-2030.65842961,0.00025,2]
[321449005,1712196637848,-127609.53220527,0.00025,2]
[321449006,1712196637858,-150.0,0.00025014,2]
[321449007,1712196637868,-161.95,0.00025014,2]
[321449008,1712196637878,-904.92,0.00025014,2]
[321449009,1712196637889,-150.0,0.00025014,2]
[321449010,1712196637898,-150.0,0.00025014,2]
[321449011,1712196637908,-150.0,0.00025014,2]
[321449012,1712196637920,-150.0,0.00025014,2]
[321449013,1712196637930,-161.95,0.00025014,2]
[321449014,1712196637942,-904.92,0.00025014,2]
[321449015,1712196637952,-150.0,0.00025014,2]
[321449016,1712196637961,-161.95,0.00025014,2]
[321449017,1712196637971,-150.0,0.00025014,2]
[321449018,1712196637980,-904.92,0.00025014,2]
[321449019,1712196637991,-150.0,0.00025014,2]
[321449020,1712196638001,-150.0,0.00025014,2]
[321449021,1712196638010,-161.95,0.00025014,2]
[321449022,1712196638020,-1634.04,0.00025014,2]
[321449023,1712196638029,-150.0,0.00025014,2]
[321449024,1712196638039,-161.95,0.00025014,2]
[321449025,1712196638048,-161.95,0.00025014,2]
[321449026,1712196638058,-162.42,0.00025014,2]
[321449027,1712196638067,-161.95,0.00025014,2]
[321449028,1712196638077,-161.95,0.00025014,2]
[321449029,1712196638086,-161.95,0.00025014,2]
[321449030,1712196638096,-161.95,0.00025014,2]
[321449031,1712196638106,-161.95,0.00025014,2]
[321449032,1712196638115,-161.95,0.00025014,2]
[321449033,1712196638125,-161.95,0.00025014,2]
[321449034,1712196638134,-161.95,0.00025014,2]
[321449035,1712196638144,-161.95,0.00025014,2]
[321449036,1712196638154,-161.95,0.00025014,2]
[321449037,1712196638163,-959.86,0.0002521,2]
[321449038,1712196638173,-161.11,0.00025639,2]
[321449039,1712196638182,-627.06,0.00025816,2]
[321449040,1712196638192,-2610.2,0.00025982,2]
[321449041,1712196638201,-161.11,0.00026307,2]
[321449042,1712196638211,-200.0,0.00026826,2]
[321449043,1712196638220,-889.8,0.00026915,2]
[321449044,1712196638229,-161.11,0.00026975,2]
[321449045,1712196638239,-1481.08,0.00027007,2]
[321449046,1712196638249,-23900.0,0.00027098,2]
[321449047,1712196638258,-153.69,0.00027151,2]
[321449048,1712196638268,-454.02,0.00027193,2]
[321449049,1712196638277,-210.0,0.00027387,2]
[321449050,1712196638287,-210.0,0.00027387,2]
[321449051,1712196638296,-179.99049597,0.00027397,2]
[321449052,1712196638306,-250.0,0.00027397,2]
[321449053,1712196638675,-164.39,0.00028016,2]
[321449054,1712196638705,-2610.2,0.00028721,2]
[321449055,1712196638714,-560.73809275,0.00029,2]
[321449056,1712196638724,-164.39,0.00029172,2]
[321449057,1712196638737,-889.8,0.00029179,2]
[321449058,1712196638746,-164.62,0.00029406,2]
[321449059,1712196638755,-441.09329125,0.000295,3]
[321449060,1712196638765,-2640.21942399,0.0002999,2]
[321449061,1712196638775,-405.20748901,0.0003,4]
[321449062,1712196638785,-3206.28076084,0.0003,2]
[321449063,1712196638794,-778.63794889,0.0003,4]
[321449064,1712196638804,-571.22698596,0.0003,7]
[321449065,1712196638815,-606.74427312,0.0003,4]
[321449066,1712196638825,-155.0,0.0003,2]
[321449067,1712196638834,-3384.00743153,0.0003,4]
[321449068,1712196638844,-200.0,0.0003,7]
[321449069,1712196638853,-200.0,0.0003,7]
[321449070,1712196638863,-200.0,0.0003,7]
[321449071,1712196638873,-200.0,0.0003,7]
[321449072,1712196638882,-200.0,0.0003,7]
[321449073,1712196638891,-200.0,0.0003,7]
[321449074,1712196638901,-200.0,0.0003,7]
[321449075,1712196638910,-206.0,0.0003,2]
[321449076,1712196638920,-164.39,0.00030328,2]
[321449077,1712196638929,-153.69,0.00030545,2]
[321449078,1712196638938,-2177.1302308,0.00030724,28]
[321449079,1712196638948,-180.0,0.00031342,2]
[321449080,1712196638957,-889.8,0.00031442,2]
[321449081,1712196638967,-2610.2,0.00031461,2]
[321449082,1712196638976,-164.39,0.00031484,2]
[321449083,1712196638986,-164.62,0.00031486,2]
[321449084,1712196638995,-195.12,0.00031644,2]
[321449085,1712196639004,-331.73521384,0.00032,4]
[321449086,1712196639013,-164.39,0.0003264,2]
[321449087,1712196639023,-156.25,0.00032877,2]
[321449088,1712196639032,-150.0,0.00032877,2]
[321449089,1712196639042,-156.25,0.00032877,2]
[321449090,1712196639051,-287.03237433,0.000329,30]
[321449091,1712196639061,-232.126503,0.00033,2]
[321449092,1712196639071,-206.0,0.00033,2]
[321449093,1712196639080,-164.62,0.00033566,2]
[321449094,1712196639090,-889.8,0.00033706,2]
[321449095,1712196639099,-150.0,0.00033742,2]
[321449096,1712196639109,-153.69,0.00033939,2]
[321449097,1712196639118,-1155.79,0.000341,2]
[321449098,1712196639127,-374.0,0.000342,2]
[321449099,1712196639136,-890.0,0.000343,2]
[321449100,1712196639146,-8680.4000365,0.00034316,2]
[321449101,1712196639156,-150.0,0.00034607,2]
[321449102,1712196639165,-9055.59018033,0.000348,4]
[321449103,1712196639174,-1281.5331215,0.00035,4]
[321449104,1712196639183,-12735.52437326,0.00035,2]
[321449105,1712196639193,-2722.09850664,0.00035,4]
[321449106,1712196639202,-1060.7,0.00035,2]
[321449107,1712196639211,-1103.62,0.00035,2]
[321449108,1712196639220,-959.86,0.00035294,2]
[321449109,1712196639229,-150.0,0.00035472,2]
[321449110,1712196639239,-164.62,0.00035646,2]
[321449111,1712196639248,-889.8,0.0003597,2]
[321449112,1712196639258,-195.12,0.00036164,2]
[321449113,1712196639267,-150.0,0.00036337,2]
[321449114,1712196639276,-679.3110518,0.00037,38]
[321449115,1712196639285,-150.0,0.00037203,2]
[321449116,1712196639295,-153.69,0.00037333,2]
[321449117,1712196639304,-155.0,0.00038,4]
[321449118,1712196639314,-600.0,0.00038,39]
[321449119,1712196639323,-998.45,0.00038027,15]
[321449120,1712196639333,-150.0,0.00038068,2]
[321449121,1712196639342,-17658.0,0.00038214,2]
[321449124,1712196639352,-889.8,0.00038234,2]
[321449125,1712196639361,-1481.08,0.00038239,2]
[321449126,1712196639370,-920.0,0.00038353,2]
[321449127,1712196639379,-490.11815053,0.000385,4]
[321449128,1712196639388,-155.0,0.000387,4]
[321449129,1712196639397,-2952.14781287,0.000388,2]
[321449130,1712196639407,-1009.99077377,0.00038867,30]
[321449131,1712196639416,-300.2451038,0.0003888,2]
[321449132,1712196639425,-4065.34553289,0.000389,15]
[321449133,1712196639434,-150.0,0.00038933,2]
[321449134,1712196639443,-23536.95463992,0.00039,2]
[321449135,1712196639452,-1155.79,0.00039,7]
[321449136,1712196639462,-600.0,0.00039,40]
[321449137,1712196639471,-1002.08,0.00039,2]
[321449138,1712196639481,-315.44,0.00039,2]
[321449139,1712196639491,-150.0,0.00039058,120]
[321449140,1712196639501,-544.243,0.00039679,2]
[321449141,1712196639510,-284.379,0.00039679,2]
[321449142,1712196639519,-284.981,0.00039679,2]
[321449143,1712196639529,-438.369,0.00039679,2]
[321449144,1712196639538,-612.474,0.00039679,2]
[321449145,1712196639548,-1283.464,0.00039679,2]
[321449146,1712196639558,-1154.324,0.00039679,2]
[321449147,1712196639567,-1494.522,0.00039679,2]
[321449148,1712196639576,-401.372,0.00039679,2]
[321449149,1712196639586,-3062.609,0.00039679,2]
[321449150,1712196639595,-150.985,0.00039679,2]
[321449151,1712196639604,-1421.095,0.00039679,2]
[321449152,1712196639614,-1649.11,0.00039679,2]
[321449153,1712196639623,-184.783,0.00039679,2]
[321449154,1712196639632,-2210.93,0.00039679,2]
[321449155,1712196639642,-13197.852,0.00039679,2]
[321449156,1712196639652,-1059.157,0.00039679,2]
[321449157,1712196639661,-579.84379418,0.00039724,12]
[321449158,1712196639671,-1047.28654305,0.00039733,2]
[321449159,1712196639680,-1083.49893784,0.00039739,2]
[321449160,1712196639689,-150.0,0.00039798,2]
[321449161,1712196639699,-2100.0,0.00039814,14]
[321449162,1712196639710,-315.44,0.00039825,2]
[321449163,1712196639722,-1991.0,0.0004,2]
[321449164,1712196639732,-5758.8947196,0.0004,4]
[321449165,1712196639742,-192.76675003,0.0004,2]
[321449166,1712196639752,-22103.7237332,0.0004,4]
[321449167,1712196639762,-466.03830899,0.0004,15]
[321449168,1712196639772,-171.13123874,0.0004,30]
[321449169,1712196639782,-2400.57437704,0.0004,30]
[321449170,1712196639791,-547.14230713,0.0004,4]
[321449171,1712196639800,-1024.94947272,0.0004,60]
[321449172,1712196639812,-600.0,0.0004,41]
[321449173,1712196639822,-2583.93044436,0.0004,2]
[321449174,1712196639831,-2583.93044436,0.0004,2]
[321449175,1712196639840,-2583.93044436,0.0004,2]
[321449176,1712196639850,-2583.93044436,0.0004,2]
[321449177,1712196639860,-2583.93044436,0.0004,2]
[321449178,1712196639869,-2583.93044436,0.0004,2]
[321449179,1712196639879,-2583.93044436,0.0004,2]
[321449180,1712196639888,-2583.93044436,0.0004,2]
[321449181,1712196639900,-2583.93044436,0.0004,2]
[321449182,1712196639910,-2583.93044436,0.0004,2]
[321449183,1712196639920,-2583.93044436,0.0004,2]
[321449184,1712196639931,-2583.93044436,0.0004,2]
[321449185,1712196639941,-2583.93044436,0.0004,2]
[321449186,1712196639950,-2583.93044436,0.0004,2]
[321449187,1712196639960,-2583.93044436,0.0004,2]
[321449188,1712196639969,-2583.93044436,0.0004,2]
[321449189,1712196639978,-2583.93044436,0.0004,2]
[321449190,1712196639990,-2583.93044436,0.0004,2]
[321449191,1712196640000,-2583.93044436,0.0004,2]
[321449192,1712196640011,-2583.93044436,0.0004,2]
[321449193,1712196640021,-2583.93044436,0.0004,2]
[321449194,1712196640031,-2583.93044436,0.0004,2]
[321449195,1712196640040,-2583.93044436,0.0004,2]
[321449196,1712196640049,-2583.93044436,0.0004,2]
[321449197,1712196640059,-2583.93044436,0.0004,2]
[321449198,1712196640068,-2583.93044436,0.0004,2]
[321449199,1712196640078,-2583.93044436,0.0004,2]
[321449200,1712196640087,-2583.93044436,0.0004,2]
[321449201,1712196640096,-2583.93044436,0.0004,2]
[321449202,1712196640105,-2583.93044436,0.0004,2]
[321449203,1712196640114,-1002.08,0.000401,2]
[321449204,1712196640124,-315.44,0.000401,2]
[321449205,1712196640133,-1000.0,0.0004012,2]
[321449206,1712196640145,-200.0,0.00040239,2]
[321449207,1712196640154,-12089.86,0.0004029,2]
[321449208,1712196640165,-19591.74,0.0004029,2]
[321449209,1712196640174,-6161.4,0.0004029,2]
[321449210,1712196640185,-889.8,0.00040498,2]
[321449211,1712196640196,-200.0,0.0004052,2]
[321449212,1712196640205,-1002.08,0.0004054,2]
[321449213,1712196640216,-3766.90026464,0.00040544,30]
[321449214,1712196640226,-1000.0,0.00040546,2]
[321449215,1712196640235,-175.27557722,0.0004055,2]
[321449216,1712196640246,-389.43740372,0.0004055,15]
[321449217,1712196640255,-200.0,0.0004055,2]
[321449218,1712196640264,-256.04237772,0.0004055,30]
[321449219,1712196640273,-816.58978373,0.0004055,30]
[321449220,1712196640283,-3353.30355716,0.0004055,4]
[321449221,1712196640292,-1829.09129581,0.0004055,10]
[321449222,1712196640301,-213.46378277,0.0004055,30]
[321449223,1712196640310,-1324.16892015,0.0004055,4]
[321449224,1712196640320,-202.09825589,0.0004055,30]
[321449225,1712196640330,-275.5,0.000406,2]
[321449226,1712196640341,-315.44,0.0004065,2]
[321449227,1712196640351,-150.0,0.00040663,2]
[321449228,1712196640361,-195.12,0.00040685,2]
[321449229,1712196640370,-2425.33679862,0.00040724,2]
[321449230,1712196640379,-4552.33979283,0.00040724,15]
[321449231,1712196640388,-4885.64393719,0.00040724,3]
[321449232,1712196640398,-338.22684057,0.00040724,2]
[321449233,1712196640407,-181.55087807,0.00040724,7]
[321449234,1712196640416,-1573.76694246,0.00040724,2]
[321449235,1712196640425,-221.44361655,0.00040724,2]
[321449236,1712196640435,-375.89148616,0.00040724,2]
[321449237,1712196640444,-1476.89387508,0.00040724,2]
[321449238,1712196640455,-7161.26451337,0.00040724,2]
[321449239,1712196640465,-159.27807138,0.00040724,2]
[321449240,1712196640474,-175.50448261,0.00040724,2]
[321449241,1712196640483,-844.77078182,0.00040724,2]
[321449242,1712196640494,-185.42157352,0.00040724,2]
[321449243,1712196640503,-841.16506851,0.00040724,2]
[321449244,1712196640512,-478.50287853,0.00040724,2]
[321449245,1712196640521,-2487.32836811,0.00040724,10]
[321449246,1712196640531,-14352.74217207,0.00040724,3]
[321449247,1712196640540,-643.0,0.00040724,2]
[321449248,1712196640549,-4000.0,0.00040724,3]
[321449249,1712196640558,-942.58098493,0.00040724,2]
[321449250,1712196640568,-6028.92464891,0.00040724,7]
[321449251,1712196640577,-556.73973114,0.00040724,2]
[321449252,1712196640586,-4367.86738982,0.00040724,7]
[321449253,1712196640596,-169.64959884,0.00040724,2]
[321449254,1712196640605,-500.0,0.00040724,2]
[321449255,1712196640614,-550.0,0.00040724,2]
[321449256,1712196640623,-979.51871427,0.00040724,2]
[321449257,1712196640633,-500.27230128,0.00040724,2]
[321449258,1712196640642,-500.0,0.00040724,2]
[321449259,1712196640651,-547.59726249,0.00040724,2]
[321449260,1712196640661,-150.0,0.00040724,2]
[321449261,1712196640670,-635.08382378,0.00040724,2]
[321449262,1712196640679,-609.13045787,0.00040724,2]
[321449263,1712196640688,-208.86253145,0.00040724,2]
[321449264,1712196640697,-16627.582021,0.00040724,7]
[321449265,1712196640706,-437.00427402,0.00040724,2]
[321449266,1712196640715,-563.43145373,0.00040724,2]
[321449267,1712196640725,-2516.73872577,0.00040724,2]
[321449268,1712196640738,-234.07386978,0.00040724,2]
[321449269,1712196640747,-524.15022582,0.00040724,2]
[321449270,1712196640756,-887.3352409,0.00040724,2]
[321449271,1712196640766,-468.27988177,0.00040724,2]
[321449272,1712196640775,-384.84017058,0.00040724,2]
[321449273,1712196640784,-240.34106936,0.00040724,2]
[321449274,1712196640793,-8723.64002819,0.00040724,14]
[321449275,1712196640802,-316.75387914,0.00040724,2]
[321449276,1712196640813,-532.61463632,0.00040724,2]
[321449277,1712196640823,-1510.61615412,0.00040724,7]
[321449278,1712196640832,-526.74600646,0.00040724,5]
[321449279,1712196640841,-354.30280344,0.00040724,2]
[321449280,1712196640850,-592.27813173,0.00040724,2]
[321449281,1712196640860,-52681.75944468,0.00040724,7]
[321449282,1712196640870,-34913.5243912,0.00040724,2]
[321449283,1712196640880,-138166.63296207,0.00040724,2]
[321449284,1712196640889,-155.65428088,0.00040724,2]
[321449285,1712196640898,-18964.28991064,0.00040724,3]
[321449286,1712196640907,-3838.47354742,0.00040724,3]
[321449287,1712196640918,-337.43452704,0.00040724,2]
[321449288,1712196640928,-771.11898055,0.00040724,20]
[321449289,1712196640937,-407.0,0.00040724,2]
[321449290,1712196640947,-764.82908093,0.00040724,2]
[321449291,1712196640957,-214.12746738,0.00040724,2]
[321449292,1712196640966,-150.0,0.00040724,2]
[321449293,1712196640975,-150.0,0.00040724,2]
[321449294,1712196640985,-200.0,0.00040724,2]
[321449295,1712196641080,-23143.0,0.00040724,4]
[321449296,1712196641089,-612.0,0.00040724,4]
[321449297,1712196641099,-153.69,0.00040726,2]
[321449298,1712196641108,-998.45,0.00040767,15]
[321449299,1712196641117,-11008.82,0.00040822,2]
[321449300,1712196641126,-156.25,0.00040885,2]
[321449301,1712196641135,-315.44,0.00040925,2]
[321449302,1712196641144,-600.0,0.00041,42]
[321449303,1712196641153,-150.33,0.00041,2]
[321449304,1712196641162,-150.33,0.00041,2]
[321449305,1712196641172,-150.33,0.00041,2]
[321449306,1712196641181,-150.33,0.00041,2]
[321449307,1712196641190,-150.33,0.00041,2]
[321449308,1712196641199,-150.33,0.00041,2]
[321449309,1712196641209,-150.33,0.00041,2]
[321449310,1712196641218,-150.33,0.00041,2]
[321449311,1712196641228,-150.33,0.00041,2]
[321449312,1712196641239,-150.33,0.00041,2]
[321449313,1712196641250,-150.33,0.00041,2]
[321449314,1712196641259,-150.33,0.00041,2]
[321449315,1712196641269,-150.33,0.00041,2]
[321449316,1712196641279,-150.33,0.00041,2]
[321449317,1712196641289,-150.33,0.00041,2]
[321449318,1712196641298,-150.33,0.00041,2]
[321449319,1712196641307,-150.33,0.00041,2]
[321449320,1712196641317,-150.33,0.00041,2]
[321449321,1712196641326,-150.33,0.00041,2]
[321449322,1712196641335,-150.33,0.00041,2]
[321449323,1712196641345,-150.33,0.00041,2]
[321449324,1712196641355,-150.33,0.00041,2]
[321449325,1712196641364,-150.33,0.00041,2]
[321449326,1712196641374,-150.33,0.00041,2]
[321449327,1712196641383,-150.33,0.00041,2]
[321449328,1712196641392,-150.33,0.00041,2]
[321449329,1712196641401,-150.33,0.00041,2]
[321449330,1712196641410,-150.33,0.00041,2]
[321449331,1712196641419,-150.33,0.00041,2]
[321449332,1712196641428,-150.33,0.00041,2]
[321449333,1712196641437,-150.33,0.00041,2]
[321449334,1712196641447,-150.33,0.00041,2]
[321449335,1712196641457,-150.33,0.00041,2]
[321449336,1712196641468,-150.33,0.00041,2]
[321449337,1712196641478,-150.33,0.00041,2]
[321449338,1712196641488,-150.33,0.00041,2]
[321449339,1712196641497,-150.33,0.00041,2]
[321449340,1712196641505,-150.33,0.00041,2]
[321449341,1712196641515,-150.33,0.00041,2]
[321449342,1712196641524,-150.33,0.00041,2]
[321449343,1712196641534,-150.33,0.00041,2]
[321449344,1712196641543,-150.33,0.00041,2]
[321449345,1712196641553,-150.33,0.00041,2]
[321449346,1712196641563,-150.33,0.00041,2]
[321449347,1712196641572,-150.33,0.00041,2]
[321449348,1712196641581,-183.0,0.00041096,2]
[321449349,1712196641590,-1060.7,0.000411,7]
[321449350,1712196641600,-1103.62,0.000411,7]
[321449351,1712196641610,-150.0,0.00041208,120]
[321449352,1712196641620,-315.44,0.00041475,2]
[321449353,1712196641629,-150.0,0.00041528,2]
[321449354,1712196641638,-475.641677,0.000416,2]
[321449355,1712196641646,-1002.08,0.0004164,2]
[321449356,1712196641655,-315.44,0.0004175,2]
[321449357,1712196641665,-8523.83226739,0.00041877,8]
[321449358,1712196641674,-5000.0,0.00041877,7]
[321449359,1712196641683,-5000.0,0.00041877,7]
[321449360,1712196641692,-5000.0,0.00041877,10]
[321449361,1712196641701,-874.01170824,0.00042,2]
[321449362,1712196641710,-301.0,0.00042,10]
[321449363,1712196641720,-600.0,0.00042,43]
[321449364,1712196641731,-1002.08,0.0004208,2]
[321449365,1712196641742,-315.44,0.000423,2]
[321449366,1712196641751,-150.0,0.00042394,2]
[321449367,1712196641760,-150.0,0.00042562,120]
[321449368,1712196641769,-315.44,0.00042575,2]
[321449369,1712196641779,-1050.0,0.00042679,2]
[321449370,1712196641788,-1155.79,0.000427,7]
[321449371,1712196641797,-150.0,0.00042717,120]
[321449372,1712196641808,-889.8,0.00042762,2]
[321449373,1712196641819,-721.67168931,0.00043,4]
[321449374,1712196641828,-600.0,0.00043,44]
[321449375,1712196641837,-315.44,0.00043125,2]
[321449376,1712196641847,-920.0,0.00043147,2]
[321449377,1712196641856,-1002.08,0.0004318,2]
[321449378,1712196641866,-150.0,0.00043228,120]
[321449379,1712196641875,-150.0,0.00043259,2]
[321449380,1712196641884,-315.44,0.000434,2]
[321449381,1712196641893,-388.13,0.00043492,2]
[321449382,1712196641902,-998.45,0.00043507,15]
[321449383,1712196641911,-1002.08,0.0004362,2]
[321449384,1712196641920,-406.65,0.00043836,2]
[321449385,1712196641929,-315.44,0.0004395,2]
[321449386,1712196641938,-600.0,0.00044,45]
[321449387,1712196641949,-2930.015054,0.00044,44]
[321449388,1712196641958,-150.0,0.00044124,120]
[321449389,1712196641967,-150.0,0.00044124,2]
[321449390,1712196641976,-315.44,0.00044225,2]
[321449391,1712196641986,-500.0,0.00044442,4]
[321449392,1712196641995,-500.0,0.00044442,4]
[321449393,1712196642004,-500.0,0.00044442,4]
[321449394,1712196642013,-500.0,0.00044442,4]
[321449395,1712196642022,-500.0,0.00044442,4]
[321449396,1712196642031,-500.0,0.00044442,4]
[321449397,1712196642039,-500.0,0.00044442,4]
[321449398,1712196642048,-500.0,0.00044442,4]
[321449399,1712196642058,-500.0,0.00044442,4]
[321449400,1712196642067,-500.0,0.00044442,4]
[321449401,1712196642075,-500.0,0.00044442,4]
[321449402,1712196642084,-500.0,0.00044442,4]
[321449403,1712196642093,-500.0,0.00044442,4]
[321449404,1712196642104,-500.0,0.00044442,4]
[321449405,1712196642114,-500.0,0.00044442,4]
[321449406,1712196642123,-500.0,0.00044442,4]
[321449407,1712196642133,-500.0,0.00044442,4]
[321449408,1712196642142,-500.0,0.00044442,4]
[321449409,1712196642153,-500.0,0.00044442,4]
[321449410,1712196642162,-314.0,0.00044442,4]
[321449411,1712196642172,-152.0,0.00044454,3]
[321449412,1712196642182,-1002.08,0.0004472,2]
[321449413,1712196642191,-548.680037,0.00044775,2]
[321449414,1712196642200,-2651.783291,0.0004488,30]
[321449415,1712196642209,-217.467859,0.0004488,30]
[321449416,1712196642219,-176.589125,0.0004488,30]
[321449417,1712196642228,-400.026094,0.0004488,30]
[321449418,1712196642238,-200.79495,0.0004488,30]
[321449419,1712196642247,-193.364569,0.0004488,30]
[321449420,1712196642256,-5000.0,0.00044986,4]
[321449421,1712196642266,-150.0,0.00044989,2]
[321449422,1712196642275,-328.47719203,0.00045,4]
[321449423,1712196642285,-157.88190132,0.00045,120]
[321449424,1712196642294,-3952.87033542,0.00045,30]
[321449425,1712196642306,-155.0,0.00045,14]
[321449426,1712196642316,-826.76337583,0.00045,30]
[321449427,1712196642325,-600.0,0.00045,46]
[321449428,1712196642336,-889.8,0.00045026,2]
[321449429,1712196642345,-315.44,0.0004505,2]
[321449430,1712196642354,-171029.17301656,0.0004509,2]
[321449431,1712196642362,-1002.08,0.0004516,2]
[321449432,1712196642371,-195.12,0.00045205,2]
[321449433,1712196642380,-2651.783291,0.00045441,30]
[321449434,1712196642389,-217.467859,0.00045441,30]
[321449435,1712196642399,-400.026094,0.00045441,30]
[321449436,1712196642408,-1060.7,0.000455,7]
[321449437,1712196642417,-1103.62,0.000455,7]
[321449438,1712196642426,-150.0,0.00045709,120]
[321449439,1712196642435,-150.0,0.00045854,2]
[321449440,1712196642445,-315.44,0.00045875,2]
[321449441,1712196642454,-1155.79,0.000459,7]
[321449442,1712196642463,-1616.04313595,0.00046,4]
[321449444,1712196642472,-155.0,0.00046,3]
[321449445,1712196642481,-600.0,0.00046,47]
[321449446,1712196642492,-2651.783291,0.00046002,30]
[321449447,1712196642501,-217.467859,0.00046002,30]
[321449448,1712196642510,-400.026094,0.00046002,30]
[321449449,1712196642520,-152.0,0.00046188,4]
[321449450,1712196642529,-998.45,0.00046247,15]
[321449451,1712196642540,-1002.08,0.0004626,2]
[321449452,1712196642551,-400.026094,0.00046544,30]
[321449453,1712196642561,-2651.783291,0.00046563,30]
[321449454,1712196642570,-217.467859,0.00046563,30]
[321449455,1712196642580,-400.026094,0.00046563,30]
[321449456,1712196642590,-1002.08,0.000467,2]
[321449457,1712196642601,-507.209563,0.000467,2]
[321449458,1712196642611,-150.0,0.0004672,2]
[321449459,1712196642621,-600.0,0.00047,48]
[321449460,1712196642630,-2651.783291,0.00047124,30]
[321449461,1712196642639,-217.467859,0.00047124,30]
[321449462,1712196642649,-400.026094,0.00047124,30]
[321449463,1712196642658,-400.026094,0.00047126,30]
[321449464,1712196642667,-151.0,0.00047283,7]
[321449465,1712196642676,-889.8,0.0004729,2]
[321449466,1712196642685,-150.0,0.00047585,2]
[321449467,1712196642694,-500.0,0.00047632,30]
[321449468,1712196642703,-35541.2820938,0.00047633,7]
[321449469,1712196642712,-400.026094,0.00047708,30]
[321449470,1712196642721,-1002.08,0.000478,2]
[321449471,1712196642733,-239.54,0.00047838,2]
[321449472,1712196642742,-152.41,0.00047838,2]
[321449473,1712196642752,-152.0,0.00047921,5]
[321449474,1712196642761,-920.0,0.00047941,2]
[321449475,1712196642770,-406.65,0.00047945,2]
[321449476,1712196642779,-510.350444,0.00048,120]
[321449477,1712196642789,-151.0,0.00048,120]
[321449478,1712196642798,-600.0,0.00048,49]
[321449479,1712196642808,-24800.0,0.00048,7]
[321449480,1712196642817,-238.86502259,0.00048093,30]
[321449481,1712196642829,-154.06850799,0.00048096,30]
[321449482,1712196642838,-153.89032083,0.0004817,30]
[321449483,1712196642847,-500.0,0.0004818,30]
[321449484,1712196642857,-197.97595336,0.00048189,30]
[321449485,1712196642866,-292.23916669,0.00048196,30]
[321449486,1712196642875,-197.97595336,0.00048225,30]
[321449487,1712196642885,-1002.08,0.0004824,2]
[321449488,1712196642894,-604.22994504,0.00048255,30]
[321449489,1712196642903,-153.54975412,0.00048256,30]
[321449490,1712196642913,-154.06850799,0.00048258,30]
[321449492,1712196642922,-155.41052791,0.0004827,30]